[Event "*** Titled Tuesday Blitz"]
[Site "Chess.com"]
[Date "2021.04.27"]
[Round "10"]
[White "Supernotar"]
[Black "Bad_left_hook"]
[Result "1-0"]
[WhiteElo "2728"]
[BlackElo "2568"]
[TimeControl "180+1"]
[EndTime "11:54:11 PDT"]
[Termination "Supernotar won by resignation"]

1. d4 {[%clk 0:03:00.9]} 1... Nf6 {[%clk 0:02:59.2]} 2. c4 {[%clk 0:03:00.8]}
2... g6 {[%clk 0:02:59.5]} 3. Nc3 {[%clk 0:03:00.3]} 3... d5 {[%clk 0:02:59.8]}
4. cxd5 {[%clk 0:03:00.2]} 4... Nxd5 {[%clk 0:03:00.7]} 5. e4 {[%clk 0:03:00.8]}
5... Nxc3 {[%clk 0:03:00.7]} 6. bxc3 {[%clk 0:03:01.7]} 6... Bg7 {[%clk
0:03:01]} 7. Nf3 {[%clk 0:03:02.6]} 7... c5 {[%clk 0:03:00.8]} 8. Be3 {[%clk
0:03:03.5]} 8... Nc6 {[%clk 0:02:48.8]} 9. Qd2 {[%clk 0:03:02.8]} 9... Qa5
{[%clk 0:02:45.7]} 10. Rc1 {[%clk 0:03:01.1]} 10... cxd4 {[%clk 0:02:45.6]} 11.
cxd4 {[%clk 0:03:02]} 11... Qxd2+ {[%clk 0:02:45.8]} 12. Kxd2 {[%clk 0:03:02.7]}
12... Bg4 {[%clk 0:02:45.5]} 13. d5 {[%clk 0:03:01.2]} 13... Bxf3 {[%clk
0:02:37.2]} 14. gxf3 {[%clk 0:02:56.1]} 14... Nd4 {[%clk 0:02:36.2]} 15. f4
{[%clk 0:02:32.4]} 15... O-O {[%clk 0:02:13.3]} 16. Kd3 {[%clk 0:02:26.4]} 16...
Nb5 {[%clk 0:02:00.7]} 17. e5 {[%clk 0:02:13.1]} 17... Rfd8 {[%clk 0:01:48.9]}
18. a4 {[%clk 0:01:58.3]} 18... Rxd5+ {[%clk 0:01:36.4]} 19. Kc4 {[%clk
0:01:55.9]} 19... Nc7 {[%clk 0:01:26.5]} 20. Bg2 {[%clk 0:01:54.4]} 20... Rd7
{[%clk 0:01:06.4]} 21. Bxb7 {[%clk 0:01:53.7]} 21... Rb8 {[%clk 0:01:06.5]} 22.
Rb1 {[%clk 0:01:45.6]} 22... Ne6 {[%clk 0:00:54.1]} 23. Ba6 {[%clk 0:01:31.4]}
23... Rc7+ {[%clk 0:00:44.6]} 24. Kd5 {[%clk 0:01:30]} 24... Rd8+ {[%clk
0:00:41]} 25. Ke4 {[%clk 0:01:30.2]} 25... f5+ {[%clk 0:00:40.4]} 26. exf6
{[%clk 0:01:19.5]} 26... Bxf6 {[%clk 0:00:40]} 27. Rhc1 {[%clk 0:01:16.6]} 27...
Rxc1 {[%clk 0:00:35]} 28. Rxc1 {[%clk 0:01:17.5]} 28... Kg7 {[%clk 0:00:34.1]}
29. Rc6 {[%clk 0:01:11.2]} 29... Nf8 {[%clk 0:00:14.2]} 30. Bxa7 {[%clk
0:01:08.2]} 30... Ra8 {[%clk 0:00:14.2]} 31. Be3 {[%clk 0:01:04.2]} 31... Nd7
{[%clk 0:00:13.2]} 32. Bb5 {[%clk 0:00:59.9]} 32... Bb2 {[%clk 0:00:08]} 33. Kf3
{[%clk 0:00:51.6]} 33... Rf8 {[%clk 0:00:06.6]} 34. Rc7 {[%clk 0:00:48.8]} 34...
Nf6 {[%clk 0:00:02.2]} 35. Rxe7+ {[%clk 0:00:48.5]} 35... Kh6 {[%clk 0:00:03.1]}
36. f5+ {[%clk 0:00:42.7]} 36... Kh5 {[%clk 0:00:03.4]} 37. Be2 {[%clk
0:00:34.8]} 37... gxf5 {[%clk 0:00:03.3]} 38. Kg3+ {[%clk 0:00:33.4]} 38... Kg6
{[%clk 0:00:03.6]} 39. a5 {[%clk 0:00:27.8]} 39... f4+ {[%clk 0:00:03.6]} 40.
Bxf4 {[%clk 0:00:24]} 40... Nd5 {[%clk 0:00:04]} 41. Re6+ {[%clk 0:00:13.5]}
41... Kf7 {[%clk 0:00:02.6]} 42. Re4 {[%clk 0:00:08.8]} 42... Rg8+ {[%clk
0:00:01.6]} 43. Kf3 {[%clk 0:00:08.5]} 43... Nxf4 {[%clk 0:00:01.6]} 44. Rxf4+
{[%clk 0:00:09.4]} 44... Ke6 {[%clk 0:00:02]} 45. a6 {[%clk 0:00:09.5]} 45...
Be5 {[%clk 0:00:02.9]} 46. Bc4+ {[%clk 0:00:09.2]} 46... Kd6 {[%clk 0:00:02.7]}
47. Bxg8 {[%clk 0:00:10.1]} 1-0

[Event "*** Titled Tuesday Blitz"]
[Site "Chess.com"]
[Date "2021.04.27"]
[Round "10"]
[White "Skat2704"]
[Black "GM_LOADING"]
[Result "1-0"]
[WhiteElo "2693"]
[BlackElo "2564"]
[TimeControl "180+1"]
[EndTime "11:54:12 PDT"]
[Termination "Skat2704 won on time"]

1. d4 {[%clk 0:03:00.9]} 1... Nf6 {[%clk 0:02:55.7]} 2. Nf3 {[%clk 0:03:01.4]}
2... e6 {[%clk 0:02:54.8]} 3. Bf4 {[%clk 0:03:00.3]} 3... c5 {[%clk 0:02:54.2]}
4. e3 {[%clk 0:02:58.7]} 4... b6 {[%clk 0:02:54.7]} 5. Be2 {[%clk 0:02:56.1]}
5... Bb7 {[%clk 0:02:55.3]} 6. O-O {[%clk 0:02:55.1]} 6... Be7 {[%clk
0:02:55.3]} 7. c3 {[%clk 0:02:49.7]} 7... O-O {[%clk 0:02:55.2]} 8. Nbd2 {[%clk
0:02:46.8]} 8... d6 {[%clk 0:02:55.9]} 9. h3 {[%clk 0:02:44.9]} 9... Nbd7 {[%clk
0:02:56.1]} 10. Rc1 {[%clk 0:02:44.4]} 10... a6 {[%clk 0:02:54.8]} 11. Re1
{[%clk 0:02:41.4]} 11... Re8 {[%clk 0:02:54.9]} 12. Qc2 {[%clk 0:02:39]} 12...
Qc7 {[%clk 0:02:54.7]} 13. e4 {[%clk 0:02:35.6]} 13... e5 {[%clk 0:02:53.7]} 14.
Be3 {[%clk 0:02:33.9]} 14... Rac8 {[%clk 0:02:49.2]} 15. d5 {[%clk 0:02:31.5]}
15... Bf8 {[%clk 0:02:47.5]} 16. c4 {[%clk 0:02:31.5]} 16... g6 {[%clk
0:02:46.8]} 17. a3 {[%clk 0:02:29.6]} 17... Bg7 {[%clk 0:02:45.6]} 18. b4 {[%clk
0:02:25.9]} 18... Rf8 {[%clk 0:02:45.4]} 19. Rb1 {[%clk 0:02:23.7]} 19... Rb8
{[%clk 0:02:37.5]} 20. Rb2 {[%clk 0:02:21.7]} 20... h6 {[%clk 0:02:27.9]} 21.
Reb1 {[%clk 0:02:16.2]} 21... Ba8 {[%clk 0:02:12.2]} 22. Nb3 {[%clk 0:02:13]}
22... Nh5 {[%clk 0:01:17.2]} 23. Bd2 {[%clk 0:02:09.7]} 23... Nf4 {[%clk
0:01:15.2]} 24. Bf1 {[%clk 0:02:07.3]} 24... f5 {[%clk 0:01:14.5]} 25. exf5
{[%clk 0:02:00.5]} 25... gxf5 {[%clk 0:01:14]} 26. Nh4 {[%clk 0:01:55.1]} 26...
Qd8 {[%clk 0:01:01.9]} 27. Nxf5 {[%clk 0:01:53.3]} 27... Qg5 {[%clk 0:01:01.8]}
28. Nxd6 {[%clk 0:01:46.4]} 28... Nxh3+ {[%clk 0:01:00.7]} 29. Kh2 {[%clk
0:01:42.2]} 29... Nf4 {[%clk 0:00:14.8]} 30. Ne4 {[%clk 0:01:31]} 30... Qh5+
{[%clk 0:00:14]} 31. Kg1 {[%clk 0:01:29.2]} 31... cxb4 {[%clk 0:00:12.6]} 32.
axb4 {[%clk 0:01:25.6]} 32... b5 {[%clk 0:00:12.8]} 33. Nbc5 {[%clk 0:01:15.8]}
33... Nf6 {[%clk 0:00:10.6]} 34. Nxf6+ {[%clk 0:01:13.6]} 34... Rxf6 {[%clk
0:00:11.5]} 35. Nd7 {[%clk 0:01:11.4]} 35... Rg6 {[%clk 0:00:11.2]} 36. Bxf4
{[%clk 0:01:07.5]} 36... exf4 {[%clk 0:00:10.6]} 37. Nxb8 {[%clk 0:01:07.1]}
37... f3 {[%clk 0:00:10.6]} 38. Qe4 {[%clk 0:00:54.8]} 38... Be5 {[%clk
0:00:07]} 39. g3 {[%clk 0:00:45.6]} 39... Bxg3 {[%clk 0:00:02.9]} 40. Qe8+
{[%clk 0:00:43.1]} 40... Kh7 {[%clk 0:00:02.7]} 41. Qf7+ {[%clk 0:00:41.1]}
41... Kh8 {[%clk 0:00:03.2]} 42. Qf8+ {[%clk 0:00:37.7]} 42... Kh7 {[%clk
0:00:03.8]} 43. fxg3 {[%clk 0:00:34.5]} 43... Rxg3+ {[%clk 0:00:04.7]} 44. Kf2
{[%clk 0:00:32.9]} 44... Qh4 {[%clk 0:00:04.3]} 45. Bd3+ {[%clk 0:00:30.6]}
45... Rg6+ {[%clk 0:00:03.3]} 46. Ke3 {[%clk 0:00:23.4]} 46... Qg5+ {[%clk
0:00:03.3]} 47. Kd4 {[%clk 0:00:21.2]} 47... Qf4+ {[%clk 0:00:02]} 48. Qxf4
{[%clk 0:00:18.8]} 1-0

[Event "*** Titled Tuesday Blitz"]
[Site "Chess.com"]
[Date "2021.04.27"]
[Round "10"]
[White "HouseOfDurin"]
[Black "MarkoPe"]
[Result "1-0"]
[WhiteElo "2133"]
[BlackElo "2229"]
[TimeControl "180+1"]
[EndTime "11:54:12 PDT"]
[Termination "HouseOfDurin won on time"]

1. d4 {[%clk 0:03:00.9]} 1... d5 {[%clk 0:02:59]} 2. Bg5 {[%clk 0:03:00.5]} 2...
Nc6 {[%clk 0:02:47.4]} 3. e3 {[%clk 0:02:59.5]} 3... a6 {[%clk 0:02:45.4]} 4. c4
{[%clk 0:02:55.2]} 4... Be6 {[%clk 0:02:41.7]} 5. cxd5 {[%clk 0:02:54.2]} 5...
Bxd5 {[%clk 0:02:42.6]} 6. Nc3 {[%clk 0:02:54.3]} 6... Nf6 {[%clk 0:02:40.7]} 7.
Bxf6 {[%clk 0:02:53.4]} 7... exf6 {[%clk 0:02:41.6]} 8. a3 {[%clk 0:02:49.5]}
8... Be7 {[%clk 0:02:40.2]} 9. Nxd5 {[%clk 0:02:47]} 9... Qxd5 {[%clk
0:02:41.1]} 10. Ne2 {[%clk 0:02:47.3]} 10... O-O {[%clk 0:02:39.6]} 11. Nc3
{[%clk 0:02:47.8]} 11... Qg5 {[%clk 0:02:38.4]} 12. g3 {[%clk 0:02:47.1]} 12...
Rad8 {[%clk 0:02:35.7]} 13. Bg2 {[%clk 0:02:47]} 13... Rfe8 {[%clk 0:02:35.4]}
14. O-O {[%clk 0:02:46.6]} 14... h5 {[%clk 0:02:36]} 15. h4 {[%clk 0:02:45.3]}
15... Qg6 {[%clk 0:02:33.3]} 16. Nd5 {[%clk 0:02:39.7]} 16... Bd6 {[%clk
0:02:32.1]} 17. Qf3 {[%clk 0:02:32.4]} 17... Nb8 {[%clk 0:01:09.3]} 18. Rfc1
{[%clk 0:02:25.5]} 18... c6 {[%clk 0:01:09.5]} 19. Nb6 {[%clk 0:01:58.8]} 19...
Nd7 {[%clk 0:01:06.6]} 20. Nc4 {[%clk 0:01:58.3]} 20... Bb8 {[%clk 0:01:05.9]}
21. b4 {[%clk 0:01:58.5]} 21... Nf8 {[%clk 0:01:05.6]} 22. Na5 {[%clk
0:01:54.5]} 22... Re7 {[%clk 0:01:02.1]} 23. Rc5 {[%clk 0:01:45.2]} 23... Ne6
{[%clk 0:00:57.1]} 24. Rxh5 {[%clk 0:01:39.4]} 24... Qc2 {[%clk 0:00:57.3]} 25.
d5 {[%clk 0:01:23.6]} 25... Be5 {[%clk 0:00:23.1]} 26. Rxe5 {[%clk 0:01:08.3]}
26... Qb2 {[%clk 0:00:22.6]} 27. Rd1 {[%clk 0:00:47.6]} 27... Qxe5 {[%clk
0:00:22.2]} 28. dxe6 {[%clk 0:00:46.7]} 28... Rxd1+ {[%clk 0:00:20.2]} 29. Qxd1
{[%clk 0:00:47.6]} 29... Qxe6 {[%clk 0:00:19.7]} 30. Nb3 {[%clk 0:00:33.2]}
30... Rd7 {[%clk 0:00:18.2]} 31. Nd4 {[%clk 0:00:33.1]} 31... Qa2 {[%clk
0:00:15.4]} 32. Qd3 {[%clk 0:00:31]} 32... a5 {[%clk 0:00:07.1]} 33. Bh3 {[%clk
0:00:29.3]} 33... Rd8 {[%clk 0:00:06]} 34. Qc3 {[%clk 0:00:23]} 34... Qb1+
{[%clk 0:00:03.4]} 35. Kg2 {[%clk 0:00:20.4]} 35... Qe4+ {[%clk 0:00:02.9]} 36.
Kg1 {[%clk 0:00:19.3]} 36... Qb1+ {[%clk 0:00:03.1]} 37. Kh2 {[%clk 0:00:18.7]}
37... Qa2 {[%clk 0:00:03.8]} 38. Kg2 {[%clk 0:00:15]} 38... Qb1 {[%clk
0:00:03.2]} 39. Bf5 {[%clk 0:00:15.4]} 39... Qa2 {[%clk 0:00:02.6]} 40. Bc2
{[%clk 0:00:15.3]} 40... Qd5+ {[%clk 0:00:02]} 41. Kg1 {[%clk 0:00:14.7]} 41...
Qa2 {[%clk 0:00:02.7]} 42. Qd3 {[%clk 0:00:14.6]} 42... Qa1+ {[%clk 0:00:02.3]}
43. Kg2 {[%clk 0:00:14.1]} 43... Qb2 {[%clk 0:00:02.6]} 44. Qh7+ {[%clk
0:00:14]} 44... Kf8 {[%clk 0:00:02.7]} 45. Nf5 {[%clk 0:00:12.5]} 1-0

[Event "*** Titled Tuesday Blitz"]
[Site "Chess.com"]
[Date "2021.04.27"]
[Round "10"]
[White "PawnEatingZombie"]
[Black "TokChess"]
[Result "0-1"]
[WhiteElo "2255"]
[BlackElo "2387"]
[TimeControl "180+1"]
[EndTime "11:54:13 PDT"]
[Termination "TokChess won on time"]

1. d4 {[%clk 0:03:00.9]} 1... d5 {[%clk 0:02:57.4]} 2. c4 {[%clk 0:03:00.8]}
2... e6 {[%clk 0:02:57.3]} 3. Nc3 {[%clk 0:03:00.7]} 3... Nf6 {[%clk 0:02:57.3]}
4. cxd5 {[%clk 0:03:00.4]} 4... exd5 {[%clk 0:02:56.8]} 5. Bg5 {[%clk 0:03:00]}
5... c6 {[%clk 0:02:56.6]} 6. e3 {[%clk 0:02:59.4]} 6... Nbd7 {[%clk 0:02:52.2]}
7. Bd3 {[%clk 0:02:56.8]} 7... Be7 {[%clk 0:02:52.2]} 8. Qc2 {[%clk 0:02:55.7]}
8... Nf8 {[%clk 0:02:51.7]} 9. Nge2 {[%clk 0:02:50.6]} 9... Ne6 {[%clk
0:02:51.3]} 10. Bh4 {[%clk 0:02:50.1]} 10... g6 {[%clk 0:02:50.2]} 11. f3 {[%clk
0:02:46.1]} 11... Ng7 {[%clk 0:02:49.7]} 12. O-O {[%clk 0:02:41.1]} 12... O-O
{[%clk 0:02:49.3]} 13. Kh1 {[%clk 0:02:34.2]} 13... Nf5 {[%clk 0:02:43.3]} 14.
Bf2 {[%clk 0:02:33.3]} 14... c5 {[%clk 0:02:32.8]} 15. g4 {[%clk 0:02:17.6]}
15... Ng7 {[%clk 0:01:52.9]} 16. Qd2 {[%clk 0:02:15.2]} 16... Ne6 {[%clk
0:01:46.4]} 17. Rad1 {[%clk 0:01:58.1]} 17... b6 {[%clk 0:01:44.7]} 18. Kg2
{[%clk 0:01:54.5]} 18... Bb7 {[%clk 0:01:43.9]} 19. Bc2 {[%clk 0:01:47.9]} 19...
cxd4 {[%clk 0:01:37.8]} 20. exd4 {[%clk 0:01:46.4]} 20... Re8 {[%clk 0:01:36.5]}
21. Rfe1 {[%clk 0:01:37.7]} 21... Rc8 {[%clk 0:01:36.4]} 22. Bb3 {[%clk
0:01:32.1]} 22... a6 {[%clk 0:01:29.9]} 23. Bg3 {[%clk 0:01:23.3]} 23... b5
{[%clk 0:01:29.5]} 24. Nc1 {[%clk 0:00:59]} 24... Bd6 {[%clk 0:01:10.6]} 25. Be5
{[%clk 0:00:40.1]} 25... Bxe5 {[%clk 0:01:03.9]} 26. Rxe5 {[%clk 0:00:34.8]}
26... Nd7 {[%clk 0:01:00.3]} 27. Ree1 {[%clk 0:00:31.3]} 27... Nb6 {[%clk
0:01:00.6]} 28. Qh6 {[%clk 0:00:27.4]} 28... Nc4 {[%clk 0:00:54.7]} 29. Bxc4
{[%clk 0:00:14.3]} 29... dxc4 {[%clk 0:00:55.6]} 30. d5 {[%clk 0:00:13.7]} 30...
Qf6 {[%clk 0:00:43.4]} 31. Ne4 {[%clk 0:00:08.1]} 31... Nf4+ {[%clk 0:00:41.1]}
32. Kh1 {[%clk 0:00:05.2]} 32... Rxe4 {[%clk 0:00:41.2]} 33. fxe4 {[%clk
0:00:04.8]} 33... Qe5 {[%clk 0:00:24.6]} 34. Rf1 {[%clk 0:00:04.3]} 34... Nd3
{[%clk 0:00:11.9]} 35. Qe3 {[%clk 0:00:03]} 35... Nxb2 {[%clk 0:00:09.7]} 36.
Qf4 {[%clk 0:00:02.4]} 36... Qxf4 {[%clk 0:00:08.8]} 37. Rxf4 {[%clk 0:00:03.1]}
37... c3 {[%clk 0:00:08.9]} 38. Re1 {[%clk 0:00:02.7]} 38... c2 {[%clk
0:00:08.2]} 39. Kg2 {[%clk 0:00:02.3]} 39... Nc4 {[%clk 0:00:08.2]} 40. Kf3
{[%clk 0:00:01.7]} 40... Ne5+ {[%clk 0:00:08.2]} 41. Kg3 {[%clk 0:00:01.4]}
41... Kf8 {[%clk 0:00:07]} 42. h4 {[%clk 0:00:01.7]} 42... Ke7 {[%clk
0:00:07.5]} 43. h5 {[%clk 0:00:02.3]} 43... Rc3+ {[%clk 0:00:07.8]} 44. Kh4
{[%clk 0:00:01.9]} 44... g5+ {[%clk 0:00:06.9]} 45. Kxg5 {[%clk 0:00:02]} 45...
Nf3+ {[%clk 0:00:07.6]} 46. Kh6 {[%clk 0:00:02.2]} 46... Nxe1 {[%clk 0:00:07.4]}
47. Kxh7 {[%clk 0:00:02.1]} 47... Nd3 {[%clk 0:00:07]} 48. Nxd3 {[%clk
0:00:01.1]} 48... Rxd3 {[%clk 0:00:07.9]} 0-1

[Event "*** Titled Tuesday Blitz"]
[Site "Chess.com"]
[Date "2021.04.27"]
[Round "10"]
[White "maximych26"]
[Black "ural58"]
[Result "0-1"]
[WhiteElo "2315"]
[BlackElo "2474"]
[TimeControl "180+1"]
[EndTime "11:54:15 PDT"]
[Termination "ural58 won by resignation"]

1. e4 {[%clk 0:03:00.9]} 1... d5 {[%clk 0:02:59.4]} 2. Nc3 {[%clk 0:02:58.5]}
2... d4 {[%clk 0:02:58.4]} 3. Nce2 {[%clk 0:02:58.1]} 3... c5 {[%clk 0:02:59.3]}
4. d3 {[%clk 0:02:58]} 4... Nc6 {[%clk 0:02:58.9]} 5. f4 {[%clk 0:02:58.6]} 5...
e5 {[%clk 0:02:59.5]} 6. Nf3 {[%clk 0:02:58.9]} 6... exf4 {[%clk 0:02:49.2]} 7.
Nxf4 {[%clk 0:02:52.2]} 7... Bd6 {[%clk 0:02:46.1]} 8. Be2 {[%clk 0:02:52.2]}
8... Nge7 {[%clk 0:02:45]} 9. O-O {[%clk 0:02:51.3]} 9... O-O {[%clk 0:02:44.3]}
10. Nh5 {[%clk 0:02:43.8]} 10... Ng6 {[%clk 0:02:41.5]} 11. Ng5 {[%clk
0:02:32.9]} 11... Nce5 {[%clk 0:02:33]} 12. h3 {[%clk 0:02:30.2]} 12... a5
{[%clk 0:02:29.8]} 13. Bd2 {[%clk 0:02:27.5]} 13... a4 {[%clk 0:02:29.3]} 14.
Rf2 {[%clk 0:02:19.7]} 14... b5 {[%clk 0:02:23]} 15. Qf1 {[%clk 0:02:15.4]}
15... Bc7 {[%clk 0:02:15]} 16. a3 {[%clk 0:02:02.1]} 16... Qd6 {[%clk
0:02:12.6]} 17. Nf4 {[%clk 0:01:56.9]} 17... Be6 {[%clk 0:02:04.4]} 18. Bh5
{[%clk 0:01:38.8]} 18... c4 {[%clk 0:01:50.5]} 19. Bxg6 {[%clk 0:01:26.7]} 19...
Nxg6 {[%clk 0:01:41.4]} 20. Re1 {[%clk 0:01:03.1]} 20... c3 {[%clk 0:01:37.9]}
21. bxc3 {[%clk 0:00:58.7]} 21... dxc3 {[%clk 0:01:38]} 22. Be3 {[%clk 0:00:59]}
22... Ba2 {[%clk 0:01:25.1]} 23. g3 {[%clk 0:00:37.5]} 23... Qxa3 {[%clk
0:01:23.1]} 24. Kg2 {[%clk 0:00:33.8]} 24... Nxf4+ {[%clk 0:01:17.9]} 25. gxf4
{[%clk 0:00:31.5]} 25... f6 {[%clk 0:01:17]} 26. Nf3 {[%clk 0:00:30]} 26... Bf7
{[%clk 0:01:12.3]} 27. Rb1 {[%clk 0:00:27.9]} 27... Rab8 {[%clk 0:01:08.5]} 28.
Nd4 {[%clk 0:00:26.6]} 28... Qc5 {[%clk 0:00:50.6]} 29. Qe2 {[%clk 0:00:21.2]}
29... b4 {[%clk 0:00:35.6]} 30. Ne6 {[%clk 0:00:20.7]} 30... Qe7 {[%clk
0:00:34.6]} 31. Nxf8 {[%clk 0:00:20.1]} 31... Qxf8 {[%clk 0:00:33.6]} 32. e5
{[%clk 0:00:19.9]} 32... Bd5+ {[%clk 0:00:32.6]} 33. Kg1 {[%clk 0:00:18.9]}
33... f5 {[%clk 0:00:32.6]} 34. e6 {[%clk 0:00:18.3]} 34... Qf6 {[%clk
0:00:28.3]} 35. Bc5 {[%clk 0:00:17.8]} 35... Qg6+ {[%clk 0:00:26.1]} 36. Kh2
{[%clk 0:00:16.8]} 36... b3 {[%clk 0:00:26.1]} 37. Rg1 {[%clk 0:00:15.6]} 37...
Qxe6 {[%clk 0:00:23.4]} 38. Qxe6+ {[%clk 0:00:14.9]} 38... Bxe6 {[%clk
0:00:23.6]} 39. Bd4 {[%clk 0:00:15.5]} 39... g6 {[%clk 0:00:21.6]} 40. Bxc3
{[%clk 0:00:15.5]} 40... bxc2 {[%clk 0:00:18.8]} 41. Rxc2 {[%clk 0:00:14.5]}
41... Bxf4+ {[%clk 0:00:18.4]} 42. Kg2 {[%clk 0:00:14.5]} 42... Bd5+ {[%clk
0:00:18.5]} 43. Kf2 {[%clk 0:00:14.6]} 43... a3 {[%clk 0:00:16.7]} 44. Ra1
{[%clk 0:00:14.1]} 44... a2 {[%clk 0:00:16.5]} 45. Bf6 {[%clk 0:00:13.4]} 45...
Ra8 {[%clk 0:00:13.8]} 46. Bd4 {[%clk 0:00:12.9]} 46... Bg5 {[%clk 0:00:13.2]}
47. Rc5 {[%clk 0:00:12.8]} 47... Bf7 {[%clk 0:00:13.3]} 48. Rb5 {[%clk
0:00:12.6]} 48... Be7 {[%clk 0:00:13.1]} 49. Rb2 {[%clk 0:00:12.1]} 49... Bf8
{[%clk 0:00:13.2]} 50. Rb7 {[%clk 0:00:12]} 50... Bg7 {[%clk 0:00:13.2]} 51. Rb6
{[%clk 0:00:12.6]} 51... Bxd4+ {[%clk 0:00:12.9]} 52. Ke2 {[%clk 0:00:12.9]}
52... Bxb6 {[%clk 0:00:13.8]} 53. d4 {[%clk 0:00:12.2]} 53... Bxd4 {[%clk
0:00:13.9]} 0-1

[Event "*** Titled Tuesday Blitz"]
[Site "Chess.com"]
[Date "2021.04.27"]
[Round "10"]
[White "grandcoach"]
[Black "fabianvivasz"]
[Result "0-1"]
[WhiteElo "2235"]
[BlackElo "2358"]
[TimeControl "180+1"]
[EndTime "11:54:15 PDT"]
[Termination "fabianvivasz won on time"]

1. e4 {[%clk 0:03:00.9]} 1... e5 {[%clk 0:02:58.2]} 2. Nf3 {[%clk 0:03:00.4]}
2... Nc6 {[%clk 0:02:57.9]} 3. d4 {[%clk 0:03:00.9]} 3... exd4 {[%clk
0:02:58.8]} 4. c3 {[%clk 0:03:01.1]} 4... d5 {[%clk 0:02:55.5]} 5. exd5 {[%clk
0:03:01.1]} 5... Qxd5 {[%clk 0:02:55.5]} 6. cxd4 {[%clk 0:03:01.8]} 6... Bg4
{[%clk 0:02:51]} 7. Be2 {[%clk 0:03:01.9]} 7... Bb4+ {[%clk 0:02:38.3]} 8. Nc3
{[%clk 0:03:01]} 8... Bxf3 {[%clk 0:02:32.3]} 9. Bxf3 {[%clk 0:03:01.9]} 9...
Qc4 {[%clk 0:02:32.8]} 10. Qb3 {[%clk 0:02:57.9]} 10... Qxb3 {[%clk 0:02:27.3]}
11. axb3 {[%clk 0:02:58.8]} 11... Nge7 {[%clk 0:02:12.9]} 12. Be3 {[%clk
0:02:57.8]} 12... O-O-O {[%clk 0:02:04.6]} 13. O-O {[%clk 0:02:58.3]} 13... a6
{[%clk 0:02:01]} 14. Rfd1 {[%clk 0:02:57]} 14... h5 {[%clk 0:01:52.5]} 15. g3
{[%clk 0:02:53.7]} 15... Nf5 {[%clk 0:01:46.5]} 16. Ne2 {[%clk 0:02:43.1]} 16...
Nce7 {[%clk 0:01:38.2]} 17. Rac1 {[%clk 0:02:20.5]} 17... Nd5 {[%clk 0:01:32.8]}
18. Bd2 {[%clk 0:01:55.2]} 18... Bxd2 {[%clk 0:01:26]} 19. Rxd2 {[%clk
0:01:56.1]} 19... g6 {[%clk 0:01:19.4]} 20. Rc5 {[%clk 0:01:49.5]} 20... Nfe7
{[%clk 0:01:10.2]} 21. Rdc2 {[%clk 0:01:43.6]} 21... b6 {[%clk 0:00:50.5]} 22.
R5c4 {[%clk 0:01:34.7]} 22... Rd6 {[%clk 0:00:45.5]} 23. Nf4 {[%clk 0:01:31.7]}
23... Nxf4 {[%clk 0:00:11.8]} 24. Rxc7+ {[%clk 0:01:30.4]} 24... Kd8 {[%clk
0:00:12]} 25. gxf4 {[%clk 0:01:27.6]} 25... Rxd4 {[%clk 0:00:12.6]} 26. Ra7
{[%clk 0:01:19.7]} 26... Rh7 {[%clk 0:00:09.7]} 27. Rcc7 {[%clk 0:01:10.6]}
27... Nc8 {[%clk 0:00:07.4]} 28. Rab7 {[%clk 0:01:04.4]} 28... Nd6 {[%clk
0:00:07.7]} 29. Rd7+ {[%clk 0:01:03.9]} 29... Ke8 {[%clk 0:00:06.9]} 30. Bc6
{[%clk 0:00:50.2]} 30... Kf8 {[%clk 0:00:07]} 31. Rd8+ {[%clk 0:00:46.5]} 31...
Kg7 {[%clk 0:00:07.1]} 32. Rbd7 {[%clk 0:00:44]} 32... Rh8 {[%clk 0:00:03.3]}
33. Rxh8 {[%clk 0:00:37.6]} 33... Kxh8 {[%clk 0:00:04.2]} 34. Ra7 {[%clk
0:00:21.5]} 34... a5 {[%clk 0:00:03.5]} 35. Bf3 {[%clk 0:00:17]} 35... Kg7
{[%clk 0:00:03.6]} 36. Kg2 {[%clk 0:00:13]} 36... Rxf4 {[%clk 0:00:03.3]} 37.
Rd7 {[%clk 0:00:11.8]} 37... Nf5 {[%clk 0:00:03.3]} 38. Rb7 {[%clk 0:00:08.6]}
38... Nh4+ {[%clk 0:00:02.9]} 39. Kg3 {[%clk 0:00:08.1]} 39... Rxf3+ {[%clk
0:00:03.8]} 40. Kxh4 {[%clk 0:00:08.3]} 40... Rxb3 {[%clk 0:00:04.7]} 41. Kg5
{[%clk 0:00:05.5]} 41... Rb5+ {[%clk 0:00:03]} 42. Kf4 {[%clk 0:00:04.3]} 42...
Rxb2 {[%clk 0:00:03.9]} 43. f3 {[%clk 0:00:03.2]} 43... a4 {[%clk 0:00:04.4]}
44. Ra7 {[%clk 0:00:01.4]} 44... b5 {[%clk 0:00:04.9]} 45. h4 {[%clk 0:00:01.9]}
45... Rb4+ {[%clk 0:00:04.7]} 0-1